bitfinex/quotes_SOLUSD_20240714
["timestamp","ask_amount","ask_price","bid_price","bid_amount"]
[1720927393959,1.7312176,144.44,144.4,11.74]
[1720927394145,1.7312176,144.44,144.41,11.74]
[1720927394860,15.9163,144.45,144.38,0.82863859]
[1720927394861,17.64729047,144.45,144.42,11.74]
[1720927395034,17.64719376,144.45,144.42,11.74]
[1720927395949,6.113,144.48,144.42,11.74]
[1720927396160,1.73068713,144.47,144.43,11.74]
[1720927397261,8.65258713,144.47,144.43,11.74]
[1720927397463,8.65258713,144.47,144.38,0.035]
[1720927397464,20.39258713,144.47,144.38,0.035]
[1720927397653,11.74,144.46,144.41,11.74]
[1720927397847,1.63005141,144.45,144.41,11.74]
[1720927398744,1.63005141,144.45,144.42,0.79343777]
[1720927399146,1.63005141,144.45,144.41,11.74]
[1720927399664,13.37005141,144.45,144.38,0.035]
[1720927399853,11.74,144.44,144.4,11.74]
[1720927400042,1.73068713,144.43,144.4,11.74]
[1720927400855,1.73068713,144.43,144.38,0.035]
[1720927401263,1.73068713,144.43,144.39,11.74]
[1720927404371,8.28198713,144.43,144.38,0.035]
[1720927404540,11.74,144.41,144.38,0.035]
[1720927404736,1.73148995,144.4,144.38,0.035]
[1720927404962,13.47148995,144.4,144.38,0.035]
[1720927405160,11.74,144.4,144.38,0.035]
[1720927405866,11.74,144.41,144.38,0.035]
[1720927406038,1.73146425,144.4,144.38,0.035]
[1720927406238,13.47146425,144.4,144.38,0.035]
[1720927407744,1.73146425,144.4,144.38,0.035]
[1720927407958,13.47145974,144.41,144.38,0.035]
[1720927408173,1.73138304,144.42,144.38,0.035]
[1720927408345,1.73138304,144.42,144.38,11.775]
[1720927408544,1.73138304,144.42,144.39,11.74]
[1720927409268,1.73138304,144.42,144.38,0.035]
[1720927409448,13.47138304,144.42,144.38,0.035]
[1720927409849,20.39568304,144.42,144.38,0.035]
[1720927410249,13.47138304,144.42,144.38,0.035]
[1720927410879,1.73138304,144.42,144.38,11.775]
[1720927411175,13.47138304,144.42,144.38,11.775]
[1720927412786,1.73138304,144.42,144.38,11.775]
[1720927413853,1.73138304,144.42,144.38,0.035]
[1720927414067,13.47138304,144.42,144.38,0.035]
[1720927414371,1.73138304,144.42,144.38,11.775]
[1720927416175,20.39558304,144.42,144.38,0.035]
[1720927420388,11.74,144.41,144.38,0.035]
[1720927422785,8.65558304,144.42,144.38,0.035]
[1720927422786,13.47137431,144.4,144.38,0.035]
[1720927423284,1.73137431,144.4,144.38,0.035]
[1720927423491,13.47148108,144.41,144.38,0.035]
[1720927423692,1.73148108,144.41,144.38,0.035]
[1720927423882,13.47148108,144.41,144.38,0.035]
[1720927426189,1.73148108,144.41,144.38,0.035]
[1720927426394,13.47139515,144.42,144.38,0.035]
[1720927427476,13.47139515,144.42,144.38,11.775]
[1720927427691,1.73139515,144.42,144.38,11.775]
[1720927432800,8.65569515,144.42,144.38,0.035]
[1720927433591,1.73139515,144.42,144.38,11.775]
[1720927434971,8.65579515,144.42,144.38,11.775]
[1720927436081,1.73139515,144.42,144.38,11.775]
[1720927437694,8.65559515,144.42,144.38,11.775]
[1720927437900,20.39559515,144.42,144.38,11.775]
[1720927439605,20.39559515,144.42,144.38,0.035]
[1720927441993,1.73139515,144.42,144.38,0.035]
[1720927442196,1.73139515,144.42,144.38,12.56949615]
[1720927443690,1.73139515,144.42,144.38,0.82949615]
[1720927443908,1.73139515,144.42,144.38,11.775]
[1720927443909,8.65559515,144.42,144.38,11.775]
[1720927444098,20.39559515,144.42,144.38,0.035]
[1720927445910,11.74,144.41,144.38,0.035]
[1720927446111,1.73141258,144.4,144.38,0.035]
[1720927451797,1.73143161,144.41,144.38,0.035]
[1720927453595,1.73142275,144.42,144.38,12.56967606]
[1720927455509,1.73126399,144.43,144.4,11.74]
[1720927455702,28.2283,144.44,144.4,11.74]
[1720927457016,1.73103273,144.43,144.4,11.74]
[1720927457398,1.73103273,144.43,144.39,11.74]
[1720927457723,8.04558411,144.47,144.41,11.74]
[1720927457900,11.74,144.46,144.41,11.74]
[1720927458094,13.4708326,144.45,144.4,11.74]
[1720927458309,11.74,144.44,144.4,11.74]
[1720927458507,13.4708326,144.45,144.4,11.74]
[1720927459522,20.3936326,144.45,144.4,11.74]
[1720927460194,13.4708326,144.45,144.41,0.79363022]
[1720927460399,1.7308326,144.45,144.41,12.53363022]
[1720927460621,1.7308326,144.45,144.41,11.74]
[1720927461726,1.7308326,144.45,144.42,0.79337122]
[1720927461921,1.7308326,144.45,144.41,11.74]
[1720927462428,13.4708326,144.45,144.4,11.74]
[1720927462718,18.6635,144.44,144.38,0.82840794]
[1720927462928,1.73115743,144.43,144.39,11.74]
[1720927463099,1.7310447,144.44,144.4,12.53376876]
[1720927463306,20.3938378,144.45,144.4,12.53376876]
[1720927464513,8.6538378,144.45,144.41,11.74]
[1720927464708,8.65318993,144.46,144.41,11.74]
[1720927465032,20.39318993,144.46,144.42,0.79339729]
[1720927465351,1.73088993,144.46,144.42,0.79339729]
[1720927465699,26.70723441,144.47,144.42,12.53339729]
[1720927465904,6.9223,144.46,144.38,0.035]
[1720927466114,1.7308953,144.45,144.41,11.74]
[1720927466518,13.4708953,144.45,144.4,11.74]
[1720927466916,13.4708953,144.45,144.38,45.035]
[1720927467410,13.4708953,144.45,144.4,11.74]
[1720927468023,1.7308953,144.45,144.41,12.53360624]
[1720927468603,1.73086804,144.46,144.41,12.53360624]
[1720927468913,1.73086804,144.46,144.42,11.74]
[1720927469308,1.73086804,144.46,144.41,0.79360624]
[1720927469309,1.73086804,144.46,144.38,45.035]
[1720927469513,1.73086804,144.46,144.42,11.74]
[1720927469805,13.47086804,144.46,144.41,11.74]
[1720927470429,1.73077806,144.45,144.38,45.035]
[1720927470605,1.73077806,144.45,144.4,11.74]
[1720927470606,13.47077806,144.45,144.4,11.74]
[1720927470804,20.39367806,144.45,144.4,11.74]
[1720927471003,1.73077806,144.45,144.38,0.035]
[1720927471211,11.74,144.42,144.38,0.035]
[1720927471506,1.73135349,144.41,144.38,0.035]
[1720927472121,13.47135349,144.41,144.38,0.035]
[1720927472300,1.73144521,144.4,144.38,0.035]
[1720927479608,11.74,144.41,144.38,0.035]
[1720927479808,13.47144207,144.42,144.38,0.035]
[1720927480735,1.73136847,144.41,144.38,0.035]
[1720927484534,8.65626847,144.41,144.38,0.035]
[1720927484736,18.6652,144.4,144.38,0.035]
[1720927484925,13.47174021,144.39,144.38,0.035]
[1720927485240,11.74,144.39,144.38,0.035]
[1720927485414,13.47180235,144.39,144.38,0.035]
[1720927485617,20.39740235,144.39,144.38,0.035]
[1720927486430,13.47180235,144.39,144.38,0.035]
[1720927486631,13.47179994,144.39,144.38,0.035]
[1720927488528,28.62406562,144.39,144.38,0.035]
[1720927489524,35.54966562,144.39,144.38,0.035]
[1720927492034,86.87136562,144.39,144.38,0.035]
[1720927492441,75.13136562,144.39,144.38,0.035]
[1720927492625,34.94576562,144.39,144.38,0.035]
[1720927493547,41.87136562,144.39,144.38,0.035]
[1720927493752,1.73176562,144.39,144.38,0.035]
[1720927493935,11.74,144.39,144.38,0.035]
[1720927494129,13.47188155,144.39,144.38,0.035]
[1720927494437,20.39748155,144.39,144.38,0.035]
[1720927496249,13.47188155,144.39,144.38,0.035]
[1720927498045,1.73188155,144.39,144.38,0.035]
[1720927498245,11.74,144.39,144.38,0.035]
[1720927499735,13.47186366,144.39,144.38,0.035]
[1720927505156,1.73186366,144.39,144.38,0.035]
[1720927505357,13.47186366,144.39,144.38,0.035]
[1720927505562,20.39746366,144.39,144.38,0.035]
[1720927507764,13.47186366,144.39,144.38,0.035]
[1720927510861,1.73186366,144.39,144.38,0.035]
[1720927511161,1.73186366,144.39,144.35,4.55715267]
[1720927511569,13.47186366,144.39,144.34,28.3565]
[1720927512237,11.74,144.37,144.33,0.8539421]
[1720927512442,1.73191518,144.36,144.33,0.8539421]
[1720927513463,13.47191458,144.37,144.33,1.64979856]
[1720927513961,1.73191458,144.37,144.33,13.38979856]
[1720927514140,13.47188715,144.38,144.33,0.8539421]
[1720927514341,11.74,144.36,144.33,0.8539421]
[1720927514542,8.65838715,144.38,144.33,0.8539421]
[1720927514543,1.73199822,144.35,144.33,0.8539421]
[1720927514763,1.73199822,144.36,144.33,0.8539421]
[1720927515636,1.73203818,144.35,144.33,0.8539421]
[1720927516258,11.74,144.34,144.33,0.8539421]
[1720927517438,13.47234045,144.35,144.33,0.8539421]
[1720927518462,1.73215118,144.36,144.33,0.8539421]
[1720927518664,1.73206204,144.35,144.33,0.8539421]
[1720927519049,13.47206204,144.35,144.33,0.8539421]
[1720927519248,1.73229216,144.34,144.33,0.8539421]
[1720927521745,20.40029216,144.34,144.33,0.8539421]
[1720927521967,13.47229216,144.34,144.33,0.8539421]
[1720927522560,20.40029216,144.34,144.33,0.8539421]
[1720927524346,13.47229216,144.34,144.33,0.8539421]
[1720927526753,20.40029216,144.34,144.33,0.8539421]
[1720927527254,13.47229216,144.34,144.33,0.8539421]
[1720927528368,20.40029216,144.34,144.33,0.8539421]
[1720927528870,13.47229216,144.34,144.33,0.8539421]
[1720927530385,20.40029216,144.34,144.33,0.8539421]
[1720927530961,13.47229216,144.34,144.33,0.8539421]
[1720927531666,20.40029216,144.34,144.33,0.8539421]
[1720927535401,13.47229216,144.34,144.33,0.8539421]
[1720927535675,1.73229216,144.34,144.33,0.8539421]
[1720927535878,13.47229216,144.34,144.33,0.8539421]
[1720927536175,1.73229216,144.34,144.33,0.8539421]
[1720927536679,20.39961059,144.36,144.33,0.8539421]
[1720927536883,20.39995639,144.35,144.33,0.8539421]
[1720927537384,13.47235639,144.35,144.33,0.8539421]
[1720927537759,1.73235639,144.35,144.33,0.8539421]
[1720927538072,8.65850461,144.38,144.33,0.8539421]
[1720927538275,8.658281,144.38,144.33,0.8539421]
[1720927538468,18.6669,144.37,144.33,0.8539421]
[1720927538678,1.73216112,144.36,144.33,0.8539421]
[1720927538988,1.73224575,144.35,144.33,0.8539421]
[1720927540485,20.39984575,144.35,144.33,0.8539421]
[1720927540692,1.73235624,144.34,144.33,0.8539421]
[1720927540987,13.47235624,144.34,144.33,0.8539421]
[1720927541685,20.40035624,144.34,144.33,0.8539421]
[1720927543666,65.40035624,144.34,144.33,0.8539421]
[1720927543870,20.40035624,144.34,144.33,0.8539421]
[1720927544989,8.66035624,144.34,144.33,0.8539421]
[1720927545192,20.40035624,144.34,144.33,0.8539421]
[1720927547092,20.40035624,144.34,144.27,22.71574878]
[1720927547093,6.9308,144.29,144.27,22.71574878]
[1720927547283,6.9329,144.24,144.19,16.2624421]
[1720927547585,43.47358277,144.23,144.19,16.2624421]
[1720927547786,30.0,144.23,144.22,11.74]
[1720927547979,30.0,144.23,144.21,0.7991522]
[1720927548174,30.0,144.23,144.22,11.74]
[1720927548580,1.73356458,144.27,144.22,11.74]
[1720927548775,1.73356458,144.27,144.2,6.4574]
[1720927548776,1.7330115,144.3,144.24,11.74]
[1720927549093,1.7330115,144.3,144.26,11.74]
[1720927549294,20.40201185,144.32,144.24,15.4085]
[1720927549495,11.74,144.31,144.26,11.74]
[1720927549700,1.62782669,144.3,144.24,15.4085]
[1720927549997,1.62782669,144.3,144.27,11.74]
[1720927550169,1.62782669,144.3,144.24,15.4085]
[1720927550575,13.36782669,144.3,144.25,11.74]
[1720927552597,1.73298205,144.31,144.29,11.74]
[1720927552902,1.73264769,144.33,144.29,11.74]
[1720927553093,1.7326245,144.32,144.29,11.74]
[1720927553990,1.73260771,144.33,144.29,11.74]
[1720927554189,34.0285,144.34,144.29,11.74]
[1720927554190,1.73261233,144.32,144.29,11.74]
[1720927555302,1.73268149,144.31,144.29,11.74]
[1720927555599,1.73264308,144.33,144.29,11.74]
[1720927555800,1.73261018,144.32,144.24,62.3685]
[1720927555980,1.73261018,144.32,144.25,0.79768007]
[1720927556477,1.73261018,144.32,144.3,11.74]
[1720927556678,1.73254266,144.33,144.3,11.74]
[1720927556974,1.73253811,144.32,144.3,11.74]
[1720927557683,1.73253859,144.34,144.3,11.74]
[1720927558398,8.66073859,144.34,144.25,7.25508007]
[1720927558606,6.9286,144.33,144.3,11.74]
[1720927558786,1.62819995,144.32,144.29,11.74]
[1720927560192,1.73260835,144.33,144.29,11.74]
[1720927560380,1.73259669,144.32,144.3,11.74]
[1720927561302,1.73255657,144.33,144.3,11.74]
[1720927561605,1.73256743,144.32,144.25,6.4574]
[1720927561790,1.73256743,144.32,144.29,11.74]
[1720927562196,1.73256743,144.32,144.25,6.4574]
[1720927562399,8.66196743,144.32,144.28,11.74]
[1720927562708,1.73256743,144.32,144.29,11.74]
[1720927563006,20.40156743,144.32,144.27,11.74]
[1720927563312,1.73282867,144.31,144.27,11.74]
[1720927564177,1.73282867,144.31,144.28,11.74]
[1720927564380,1.73282867,144.31,144.27,11.74]
[1720927564597,1.73282867,144.31,144.24,15.4085]
[1720927564798,1.73282867,144.31,144.27,11.74]
[1720927565194,1.73270863,144.33,144.29,11.74]
[1720927565392,18.668,144.34,144.24,27.94633025]
[1720927565393,1.62802991,144.32,144.24,15.4085]
[1720927565716,13.36802991,144.32,144.27,11.74]
[1720927567407,13.36802991,144.32,144.24,16.20621375]
[1720927567408,1.62802991,144.32,144.28,11.74]
[1720927567598,40.1309,144.37,144.24,27.94621375]
[1720927567599,1.73267433,144.34,144.24,27.94621375]
[1720927567807,1.73267433,144.34,144.3,11.74]
[1720927569198,1.73232985,144.36,144.32,11.74]
[1720927569395,1.62840869,144.35,144.32,11.74]
[1720927570291,1.73228524,144.36,144.32,11.74]
[1720927570491,41.4806,144.37,144.32,11.74]
[1720927570492,1.73228524,144.35,144.32,11.74]
[1720927571292,1.73228524,144.35,144.31,11.74]
[1720927571598,13.47228524,144.35,144.3,11.74]
[1720927571916,20.40018524,144.35,144.3,11.74]
[1720927572599,1.73228524,144.35,144.31,11.74]
[1720927572799,13.47228524,144.35,144.3,11.74]
[1720927573500,1.73228524,144.35,144.31,11.74]
[1720927574599,1.73228524,144.35,144.27,6.4951]
[1720927574913,1.73228524,144.35,144.31,11.74]
[1720927575114,1.73228524,144.35,144.32,11.74]
[1720927575716,20.1003052,144.4,144.28,0.7971432]
[1720927575717,1.73229156,144.36,144.33,11.74]
[1720927575897,1.73229156,144.39,144.3,0.79590004]
[1720927576096,13.47229156,144.39,144.34,11.74]
[1720927576618,1.73229156,144.39,144.34,11.74]
[1720927576802,13.47229156,144.39,144.34,11.74]
[1720927577399,1.73229156,144.39,144.35,11.74]
[1720927578405,11.74,144.37,144.32,11.74]
[1720927578606,1.73222473,144.36,144.32,11.74]
[1720927578809,1.73221335,144.35,144.33,11.74]
[1720927579020,1.73217764,144.37,144.33,11.74]
[1720927579519,13.47217764,144.37,144.32,11.74]
[1720927580114,1.73222352,144.36,144.32,11.74]
[1720927580308,1.73222271,144.35,144.32,11.74]
[1720927581214,1.73228275,144.34,144.32,11.74]
[1720927581512,1.73228251,144.36,144.32,11.74]
[1720927581819,1.73228251,144.35,144.32,11.74]
[1720927582599,1.62845638,144.34,144.32,11.74]
[1720927582817,1.73228196,144.36,144.32,11.74]
[1720927583117,1.73220981,144.35,144.33,11.74]
[1720927583326,1.73214376,144.37,144.33,11.74]
[1720927583619,1.73214376,144.37,144.34,11.74]
[1720927584219,11.74,144.39,144.34,11.74]
[1720927584220,1.73201417,144.36,144.34,11.74]
[1720927584431,13.47201406,144.38,144.33,11.74]
[1720927587210,1.73201406,144.38,144.34,11.74]
[1720927588814,1.73201406,144.38,144.35,11.74]
[1720927589112,1.73178989,144.37,144.35,11.74]
[1720927589417,13.47180501,144.39,144.34,11.74]
[1720927590005,20.39750501,144.39,144.29,16.6626]
[1720927590315,18.6661,144.38,144.29,16.6626]
[1720927590512,13.47209424,144.37,144.32,11.74]
[1720927591035,1.73209424,144.37,144.33,11.74]
[1720927591316,1.73209424,144.37,144.34,11.74]
[1720927591492,1.73189685,144.39,144.35,11.74]
[1720927591695,11.74,144.38,144.33,11.74]
[1720927591891,1.73204621,144.37,144.33,11.74]
[1720927592318,1.73204621,144.37,144.34,11.74]
[1720927592521,1.73204621,144.37,144.33,11.74]
[1720927594515,13.47204621,144.37,144.33,11.74]
[1720927594721,1.73204621,144.37,144.33,11.74]
[1720927594912,1.73204621,144.37,144.34,11.74]
[1720927595114,1.73198088,144.36,144.34,11.74]
[1720927595319,1.73198919,144.38,144.34,11.74]
[1720927598395,6.9276,144.35,144.29,16.6626]
[1720927598596,13.47209553,144.37,144.32,11.74]
[1720927599022,1.73209553,144.37,144.33,11.74]
[1720927599225,8.65869553,144.37,144.33,11.74]
[1720927599723,1.73209553,144.37,144.33,11.74]
[1720927601409,1.73209553,144.37,144.34,11.74]
[1720927602019,1.73196529,144.38,144.34,11.74]
[1720927605237,8.65816529,144.38,144.34,11.74]
[1720927607021,8.65816529,144.38,144.29,16.6626]
[1720927607223,20.39816529,144.38,144.33,11.74]
[1720927609341,8.65816529,144.38,144.33,11.74]
[1720927609819,8.65816529,144.38,144.34,11.74]
[1720927611620,1.73196529,144.38,144.35,11.74]
[1720927611819,1.73179694,144.39,144.35,11.74]
[1720927612019,8.65759694,144.39,144.35,11.74]
[1720927613226,1.73180305,144.44,144.38,11.74]
[1720927613428,1.73180305,144.44,144.36,0.79530463]
[1720927613429,1.73089256,144.46,144.39,0.7934036]
[1720927613632,1.73079662,144.48,144.45,11.74]
[1720927614336,1.73071191,144.53,144.47,11.74]
[1720927614838,1.73071191,144.53,144.43,0.79217018]
[1720927615046,1.73071191,144.53,144.5,11.74]
[1720927615226,1.73071191,144.53,144.43,65.79217018]
[1720927615227,1.73071191,144.53,144.51,11.74]
[1720927615419,1.73016351,144.54,144.51,11.74]
[1720927616025,1.73016351,144.54,144.52,11.74]
[1720927617113,1.73016351,144.54,144.49,0.79086759]
[1720927617318,1.73016351,144.54,144.51,11.74]
[1720927617839,1.73016351,144.54,144.52,11.74]
[1720927618728,1.72990827,144.55,144.52,11.74]
[1720927618934,1.72990816,144.54,144.52,11.74]
[1720927620025,1.72990804,144.55,144.52,11.74]
[1720927620354,1.72990793,144.54,144.52,11.74]
[1720927621223,1.72990788,144.55,144.52,11.74]
[1720927621425,1.72990756,144.54,144.52,11.74]
[1720927622441,1.72990733,144.56,144.52,11.74]
[1720927622845,1.72990733,144.56,144.53,11.74]
[1720927624930,1.72979309,144.57,144.55,11.74]
[1720927625246,11.74,144.6,144.55,11.74]
[1720927625442,1.72957428,144.59,144.55,11.74]
[1720927625630,1.72957428,144.59,144.56,11.74]
[1720927626043,1.72957428,144.59,144.57,11.74]
[1720927626359,1.72926384,144.61,144.57,11.74]
[1720927626651,1.72930851,144.6,144.57,11.74]
[1720927626947,1.72930851,144.6,144.51,0.79006045]
[1720927626948,11.74,144.59,144.54,11.74]
[1720927627150,1.7294662,144.58,144.54,11.74]
[1720927627339,1.72945243,144.57,144.56,11.74]
[1720927627535,6.9152,144.61,144.56,11.74]
[1720927627536,1.63128611,144.59,144.56,11.74]
[1720927628450,1.72942528,144.58,144.56,11.74]
[1720927628654,1.72941495,144.6,144.56,11.74]
[1720927629542,1.72941495,144.6,144.51,0.78994417]
[1720927629741,13.46941495,144.6,144.52,0.78994828]
[1720927629938,13.46941495,144.6,144.55,11.74]
[1720927630142,1.72941495,144.6,144.56,11.74]
[1720927630346,1.72941495,144.6,144.57,11.74]
[1720927630551,1.72924191,144.59,144.57,11.74]
[1720927630769,1.72924191,144.61,144.57,11.74]
[1720927631065,1.72924145,144.6,144.58,11.74]
[1720927631934,13.46915653,144.64,144.59,11.74]
[1720927632681,20.38295653,144.64,144.59,11.74]
[1720927634563,1.72915653,144.64,144.59,11.74]
[1720927634747,1.72915653,144.64,144.6,11.74]
[1720927634943,13.46915653,144.64,144.59,11.74]
[1720927635962,20.38285653,144.64,144.59,11.74]
[1720927636662,1.72915653,144.64,144.59,11.74]
[1720927636865,20.38295653,144.64,144.59,11.74]
[1720927637079,11.74,144.62,144.57,11.74]
[1720927637357,1.72909904,144.61,144.58,11.74]
[1720927637542,1.72909752,144.6,144.57,11.74]
[1720927638455,1.72909631,144.61,144.57,11.74]
[1720927638654,1.72909772,144.6,144.57,11.74]
[1720927638950,1.72909673,144.61,144.57,11.74]
[1720927639156,1.72909673,144.6,144.57,11.74]
[1720927640166,1.72909659,144.61,144.57,11.74]
[1720927640469,1.72909611,144.6,144.58,11.74]
[1720927640650,1.72909611,144.61,144.58,11.74]
[1720927640847,1.72909604,144.6,144.58,11.74]
[1720927641760,1.72909606,144.61,144.58,11.74]
[1720927641955,1.72909602,144.6,144.58,11.74]
[1720927642159,11.74,144.62,144.58,11.74]
[1720927642160,1.72909602,144.61,144.58,11.74]
[1720927642454,1.729096,144.64,144.6,11.74]
[1720927642859,1.72869955,144.65,144.61,12.52814038]
[1720927643051,18.0699,144.66,144.61,12.52814038]
[1720927643052,1.72860263,144.64,144.61,11.74]
[1720927643247,1.72860263,144.64,144.58,0.78791764]
[1720927643456,1.72860263,144.64,144.62,11.74]
[1720927644049,1.72860269,144.65,144.62,11.74]
[1720927644251,1.72860269,144.65,144.58,45.78791764]
[1720927644252,1.72853146,144.68,144.64,11.74]
[1720927644464,1.72853146,144.68,144.59,0.78773697]
[1720927644465,1.72853146,144.68,144.59,0.7869261]
[1720927644655,1.72853146,144.68,144.65,11.74]
[1720927645962,1.72853146,144.68,144.66,11.74]
[1720927646161,1.72853146,144.68,144.65,11.74]
[1720927647455,2.58205997,144.69,144.65,11.74]
[1720927647851,2.58205997,144.69,144.58,45.0]
[1720927648050,14.32205997,144.69,144.65,11.74]
[1720927648458,2.58205997,144.69,144.65,11.74]
[1720927648645,0.8539421,144.69,144.66,12.52667388]
[1720927649248,0.8539421,144.69,144.59,20.0]
[1720927649249,2.58191428,144.69,144.59,20.0]
[1720927649446,2.58191428,144.69,144.66,11.74]
[1720927650172,2.58191428,144.69,144.61,0.78662121]
[1720927650496,0.8539421,144.69,144.66,11.74]
[1720927650642,2.58201872,144.69,144.66,11.74]
[1720927650845,2.58201872,144.69,144.67,11.74]
[1720927651053,0.8539421,144.69,144.67,11.74]
[1720927651452,0.8539421,144.69,144.61,65.0]
[1720927651665,0.8539421,144.69,144.66,11.74]
[1720927652376,0.8539421,144.69,144.67,11.74]
[1720927653052,0.8539421,144.69,144.68,11.74]
[1720927656359,0.8539421,144.69,144.65,0.78609505]
[1720927656670,0.8539421,144.69,144.67,11.74]
[1720927658972,0.8539421,144.69,144.68,11.74]
[1720927659479,0.8539421,144.69,144.67,11.74]
[1720927659683,0.8539421,144.69,144.68,12.5260412]
[1720927664568,0.8539421,144.69,144.68,56.74]
[1720927664789,0.8539421,144.69,144.68,76.74]
[1720927669575,1.72732329,144.77,144.68,76.74]
[1720927669786,1.72732329,144.77,144.74,11.74]
[1720927670080,16.76667987,144.79,144.75,12.52425315]
[1720927670871,16.76667987,144.79,144.75,11.74]
[1720927674292,15.0396,144.79,144.75,11.74]
[1720927674493,16.76649093,144.79,144.75,11.74]
[1720927674990,28.50649093,144.79,144.74,11.74]
[1720927675296,16.76649093,144.79,144.68,16.2339]
[1720927675469,11.74,144.74,144.7,11.74]
[1720927675671,1.72743341,144.73,144.69,11.74]
[1720927675884,13.4674493,144.74,144.7,12.52511913]
[1720927676076,13.4674493,144.74,144.7,11.74]
[1720927676385,13.46747115,144.73,144.65,22.7623]
[1720927676588,11.74,144.72,144.68,11.74]
[1720927676792,1.63326739,144.71,144.65,16.2339]
[1720927677087,1.63326739,144.71,144.68,11.74]
[1720927677872,1.63326739,144.71,144.65,16.2339]
[1720927678095,1.63326739,144.71,144.68,11.74]
[1720927678372,1.63326739,144.71,144.66,20.0]
[1720927678373,1.63326739,144.71,144.67,11.74]
[1720927678791,13.46779402,144.72,144.67,12.52596712]
[1720927678997,1.72779402,144.72,144.69,11.74]
[1720927679597,1.72779402,144.72,144.68,11.74]
[1720927679900,11.74,144.71,144.67,11.74]
[1720927680077,11.74,144.71,144.66,11.74]
[1720927680078,1.72794257,144.7,144.66,11.74]
[1720927680395,1.72794257,144.7,144.67,11.74]
[1720927680572,15.0396,144.73,144.68,0.78622853]
[1720927680771,15.0396,144.73,144.64,20.85463589]
[1720927680772,15.0396,144.73,144.7,11.74]
[1720927680973,6.3853,144.75,144.71,12.52508824]
[1720927681172,8.11265766,144.75,144.71,12.52508824]
[1720927681399,8.11265766,144.75,144.72,11.74]
[1720927682674,11.74,144.73,144.67,0.78512136]
[1720927682879,8.11265766,144.75,144.67,0.78512136]
[1720927682880,13.46786288,144.72,144.67,11.74]
[1720927683280,13.4677863,144.74,144.69,11.74]
[1720927683483,1.7277863,144.74,144.71,11.74]
[1720927683873,1.7277863,144.74,144.64,11.74]
[1720927683874,1.72742297,144.73,144.69,11.74]
[1720927684600,13.46742297,144.73,144.69,11.74]
[1720927684898,1.72769652,144.72,144.68,11.74]
[1720927685201,1.72769652,144.72,144.62,15.4722]
[1720927685388,1.72769652,144.72,144.68,11.74]
[1720927685587,13.46769652,144.72,144.67,11.74]
[1720927685999,1.72769652,144.72,144.67,11.74]
[1720927686189,1.7276718,144.73,144.69,11.74]
[1720927686985,13.4676718,144.73,144.69,11.74]
[1720927687185,1.72769472,144.72,144.69,11.74]
[1720927687389,1.72769472,144.72,144.68,11.74]
[1720927687587,11.74,144.73,144.69,0.78570923]
[1720927687799,13.46768657,144.74,144.69,0.78570923]
[1720927687987,1.72754882,144.73,144.69,11.74]
[1720927688595,1.72754882,144.73,144.7,11.74]
[1720927689604,13.46754882,144.73,144.65,20.0]
[1720927689781,1.72769799,144.72,144.68,11.74]
[1720927690177,13.46769799,144.72,144.65,20.0]
[1720927690377,13.46769799,144.72,144.67,11.74]
[1720927690690,11.74,144.71,144.66,11.74]
[1720927690991,1.72787003,144.7,144.66,11.74]
[1720927691489,6.3853,144.75,144.63,20.0]
[1720927691490,11.74,144.73,144.68,11.74]
[1720927691798,1.72765777,144.72,144.68,11.74]
[1720927692712,1.72765777,144.72,144.69,11.74]
[1720927693002,1.72766557,144.73,144.69,11.74]
[1720927693208,11.74,144.72,144.63,20.0]
[1720927693509,13.46788402,144.71,144.66,11.74]